bitfinex/quotes_SOLUSD_20240711
["timestamp","ask_amount","ask_price","bid_price","bid_amount"]
[1720668350566,6.6042,140.24,140.16,7.1345]
[1720668351261,6.6042,140.24,140.15,7.1351]
[1720668351673,6.6042,140.24,140.16,7.1345]
[1720668351962,6.6042,140.24,140.17,7.1341]
[1720668352170,6.6042,140.24,140.16,7.1346]
[1720668352667,6.6042,140.24,140.17,7.134]
[1720668352882,6.6042,140.24,140.18,7.1335]
[1720668353042,6.6042,140.24,140.19,7.1331]
[1720668353247,6.6042,140.24,140.12,0.17]
[1720668353564,6.6042,140.24,140.13,21.56]
[1720668353750,6.6042,140.24,140.14,45.34]
[1720668354166,6.6042,140.24,140.21,7.1321]
[1720668354376,6.6042,140.24,140.22,7.1316]
[1720668354571,6.6042,140.24,140.15,20.0]
[1720668354751,6.6042,140.24,140.18,7.1332]
[1720668355071,6.6042,140.24,140.19,45.0]
[1720668355251,6.6042,140.24,140.16,0.17]
[1720668355572,6.6042,140.24,140.16,0.34]
[1720668355754,6.6042,140.24,140.19,7.1331]
[1720668355948,6.6042,140.24,140.16,0.17]
[1720668356165,6.6042,140.24,140.19,7.1331]
[1720668356973,6.6042,140.24,140.15,20.0]
[1720668357162,6.6042,140.24,140.14,27.18]
[1720668357163,6.6042,140.24,140.16,7.1346]
[1720668357465,6.6042,140.24,140.17,7.1339]
[1720668358478,6.6042,140.24,140.19,7.1331]
[1720668358774,6.6042,140.24,140.15,45.0]
[1720668359074,0.17,140.23,140.08,6.5536]
[1720668359274,0.17,140.23,140.11,7.1368]
[1720668359275,0.17,140.21,140.11,7.1368]
[1720668359451,0.17,140.21,140.12,7.1366]
[1720668360154,10.1854,140.22,140.08,28.1136]
[1720668360353,10.1854,140.22,140.14,7.1353]
[1720668360556,10.1854,140.22,140.09,36.7442]
[1720668360773,6.6042,140.24,140.18,7.1332]
[1720668360979,6.6042,140.24,140.12,27.01]
[1720668361185,6.6042,140.24,140.12,48.57]
[1720668361365,6.6042,140.24,140.13,65.34]
[1720668361877,6.6042,140.24,140.18,7.1335]
[1720668362586,6.6042,140.24,140.19,7.1329]
[1720668362762,6.6042,140.24,140.17,7.1337]
[1720668363075,6.6042,140.24,140.12,27.01]
[1720668363388,0.17,140.23,140.13,7.1357]
[1720668363556,0.17,140.23,140.15,7.1351]
[1720668363884,0.17,140.23,140.09,15.1842]
[1720668364181,0.17,140.23,140.12,7.1362]
[1720668364360,0.17,140.23,140.1,7.1376]
[1720668364555,0.34,140.23,140.11,7.1371]
[1720668364761,0.34,140.23,140.12,7.1363]
[1720668365272,0.34,140.23,140.07,27.01]
[1720668365459,0.34,140.23,140.13,7.136]
[1720668365781,0.34,140.23,140.12,7.1366]
[1720668366088,0.17,140.23,140.13,7.1361]
[1720668366262,0.17,140.23,140.14,7.1355]
[1720668366462,0.17,140.23,140.08,0.17]
[1720668366650,0.17,140.23,140.15,7.1347]
[1720668366855,6.6042,140.24,140.1,0.17]
[1720668367088,6.6042,140.24,140.12,27.01]
[1720668367393,6.6042,140.24,140.13,45.34]
[1720668367760,6.6042,140.24,140.17,7.1341]
[1720668368459,6.6042,140.24,140.16,7.1345]
[1720668368870,6.6042,140.24,140.13,45.34]
[1720668369073,6.6042,140.24,140.18,7.1334]
[1720668369264,6.6042,140.24,140.19,7.1329]
[1720668369480,6.6042,140.24,140.21,7.132]
[1720668369668,6.6042,140.24,140.13,83.3457]
[1720668369669,6.6042,140.24,140.2,7.1325]
[1720668370071,0.6398012,140.26,140.21,7.132]
[1720668370292,0.6398012,140.26,140.22,7.1315]
[1720668370668,0.6398012,140.26,140.21,7.132]
[1720668371297,0.6398012,140.26,140.16,27.01]
[1720668371588,0.6398012,140.26,140.19,7.133]
[1720668371885,0.6398012,140.26,140.2,0.54200217]
[1720668372185,0.6398012,140.26,140.19,7.1331]
[1720668372689,0.6398012,140.26,140.17,52.3036]
[1720668372873,0.6398012,140.26,140.18,0.17]
[1720668373065,0.6398012,140.26,140.2,7.1326]
[1720668373267,0.6398012,140.26,140.17,45.17]
[1720668373477,0.6398012,140.26,140.18,0.17]
[1720668374081,0.6398012,140.26,140.21,7.132]
[1720668374276,0.6398012,140.26,140.2,7.1325]
[1720668374491,0.6398012,140.26,140.19,7.1328]
[1720668374674,0.6398012,140.26,140.18,0.17]
[1720668374987,0.6398012,140.26,140.22,7.1313]
[1720668375291,0.6398012,140.26,140.21,7.132]
[1720668375661,0.6398012,140.26,140.2,7.1325]
[1720668375863,0.6398012,140.26,140.21,7.132]
[1720668376281,0.6398012,140.26,140.18,0.17]
[1720668376787,6.129,140.24,140.15,23.98]
[1720668376996,6.129,140.24,140.16,7.1346]
[1720668377302,6.129,140.24,140.17,7.1341]
[1720668377468,6.129,140.24,140.15,23.98]
[1720668377671,6.129,140.24,140.18,7.1336]
[1720668378790,6.129,140.24,140.19,7.1331]
[1720668379092,6.129,140.24,140.21,7.132]
[1720668379270,6.129,140.24,140.22,7.1315]
[1720668380561,6.129,140.24,140.21,7.132]
[1720668381493,0.6398012,140.26,140.21,7.132]
[1720668381867,0.6398012,140.26,140.22,7.1315]
[1720668382968,0.6398012,140.26,140.21,31.1119]
[1720668383286,0.6398012,140.26,140.21,23.98]
[1720668383809,0.6398012,140.26,140.21,31.112]
[1720668384289,0.6398012,140.26,140.21,23.98]
[1720668384689,0.6398012,140.26,140.22,7.1316]
[1720668384900,0.6398012,140.26,140.21,23.98]
[1720668385394,0.6398012,140.26,140.23,7.1309]
[1720668385606,0.6398012,140.26,140.23,7.1311]
[1720668385968,0.6398012,140.26,140.24,7.1305]
[1720668386304,0.6398012,140.26,140.25,52.1301]
[1720668386504,0.6398012,140.26,140.25,52.4701]
[1720668386678,0.6398012,140.26,140.25,52.3001]
[1720668387207,16.3055,140.36,140.25,65.51]
[1720668387376,16.3055,140.36,140.29,23.98]
[1720668387700,16.3055,140.36,140.26,0.17]
[1720668387701,6.1201,140.36,140.26,0.17]
[1720668387880,6.1201,140.36,140.26,24.15]
[1720668388089,6.1201,140.36,140.26,23.98]
[1720668388588,6.1201,140.36,140.27,45.0]
[1720668388783,0.17,140.35,140.26,23.98]
[1720668389187,0.34,140.35,140.26,23.98]
[1720668389775,0.17,140.35,140.26,23.98]
[1720668390607,0.17,140.35,140.27,45.0]
[1720668391296,0.17,140.35,140.26,23.98]
[1720668391506,0.34,140.35,140.26,23.98]
[1720668391705,0.51,140.35,140.23,23.98]
[1720668393005,0.34,140.35,140.23,23.98]
[1720668393210,0.34,140.35,140.24,45.0]
[1720668393397,0.34,140.35,140.23,23.98]
[1720668393599,0.34,140.35,140.24,45.0]
[1720668394011,0.34,140.35,140.23,23.98]
[1720668394619,0.34,140.35,140.24,45.0]
[1720668395119,0.34,140.35,140.23,23.98]
[1720668395418,0.17,140.3,140.21,23.98]
[1720668396788,6.2629,140.31,140.21,23.98]
[1720668397216,6.2629,140.31,140.24,23.98]
[1720668399205,6.0099,140.35,140.27,23.98]
[1720668399913,6.0099,140.35,140.24,23.98]
[1720668400222,6.0099,140.35,140.25,45.0]
[1720668400423,6.0099,140.35,140.24,23.98]
[1720668400791,0.17,140.34,140.25,45.17]
[1720668403304,6.0099,140.35,140.27,23.98]
[1720668403515,6.0099,140.35,140.28,45.0]
[1720668403689,6.0099,140.35,140.27,23.98]
[1720668406808,6.0099,140.35,140.3,23.98]
[1720668408297,6.564,140.39,140.3,23.98]
[1720668408623,6.564,140.39,140.31,45.0]
[1720668409139,6.564,140.39,140.33,23.98]
[1720668409309,6.564,140.39,140.34,45.0]
[1720668409502,6.564,140.39,140.33,23.98]
[1720668410399,6.564,140.39,140.34,45.0]
[1720668410595,6.564,140.39,140.33,23.98]
[1720668413628,6.564,140.39,140.34,45.0]
[1720668413831,6.564,140.39,140.33,23.98]
[1720668414037,0.8198012,140.4,140.34,0.34]
[1720668414337,0.8198012,140.4,140.34,45.17]
[1720668414502,0.8198012,140.4,140.35,0.17]
[1720668414711,0.8198012,140.4,140.34,42.61]
[1720668416144,0.8198012,140.4,140.35,0.17]
[1720668416438,0.8198012,140.4,140.36,23.98]
[1720668417407,0.8198012,140.4,140.37,45.34]
[1720668417607,0.8198012,140.4,140.39,23.98]
[1720668418034,0.8198012,140.4,140.39,68.98]
[1720668419323,0.8198012,140.4,140.39,23.98]
[1720668419525,0.8198012,140.4,140.33,15.8935]
[1720668419706,0.8198012,140.4,140.36,23.98]
[1720668422433,0.8198012,140.4,140.33,15.8935]
[1720668422612,0.8198012,140.4,140.33,39.8735]
[1720668423208,0.8198012,140.4,140.36,23.98]
[1720668424628,0.8198012,140.4,140.33,23.98]
[1720668425156,0.8198012,140.4,140.3,15.9635]
[1720668425157,10.1854,140.38,140.26,15.7333]
[1720668425308,0.17,140.37,140.27,23.98]
[1720668425513,6.6664,140.36,140.27,23.98]
[1720668426120,0.17,140.35,140.27,23.98]
[1720668426425,0.17,140.35,140.24,23.98]
[1720668426736,0.17,140.35,140.22,21.7319]
[1720668426737,45.51,140.35,140.23,23.98]
[1720668428218,145.51,140.35,140.23,23.98]
[1720668428425,0.17,140.32,140.2,23.98]
[1720668428741,0.51,140.32,140.21,0.60124298]
[1720668429640,0.17,140.32,140.23,23.98]
[1720668429844,0.17,140.32,140.24,0.60161515]
[1720668430029,16.3345,140.33,140.24,0.60161515]
[1720668430223,16.3345,140.33,140.24,45.60161515]
[1720668430426,16.3345,140.33,140.26,23.98]
[1720668430636,16.3345,140.33,140.27,0.60148665]
[1720668431345,16.3345,140.33,140.26,0.60211583]
[1720668431925,0.17,140.32,140.24,0.60240812]
[1720668432129,16.3345,140.33,140.24,45.60240812]
[1720668432520,16.3345,140.33,140.25,0.34]
[1720668434953,6.1491,140.33,140.26,24.58232221]
[1720668435121,6.1491,140.33,140.27,45.0]
[1720668435324,7.4178012,140.4,140.29,23.98]
[1720668435639,7.4178012,140.4,140.3,45.94215085]
[1720668436231,7.4178012,140.4,140.32,23.98]
[1720668436447,7.4178012,140.4,140.35,23.98]
[1720668436763,7.4178012,140.4,140.38,23.98]
[1720668436764,0.8198012,140.4,140.38,23.98]
[1720668436953,0.8198012,140.4,140.39,0.60690402]
[1720668437433,0.8198012,140.4,140.35,23.98]
[1720668437744,0.8198012,140.4,140.36,45.34]
[1720668438344,0.8198012,140.4,140.37,16.3164]
[1720668438532,0.8198012,140.4,140.39,23.98]
[1720668438732,0.8198012,140.4,140.39,24.32]
[1720668439131,0.8198012,140.4,140.39,69.32]
[1720668440034,0.8198012,140.4,140.39,75.5699]
[1720668440229,0.8198012,140.4,140.39,95.5699]
[1720668440435,0.04235172,140.47,140.39,95.5699]
[1720668440673,0.04235172,140.47,140.42,23.98]
[1720668442229,0.04235172,140.47,140.37,16.3164]
[1720668442532,0.04235172,140.47,140.38,69.15]
[1720668442847,0.04235172,140.47,140.38,23.98]
[1720668444127,0.04235172,140.47,140.39,45.17]
[1720668446050,0.04235172,140.47,140.41,23.98]
[1720668447553,0.04235172,140.47,140.42,1.18873382]
[1720668449955,0.04235172,140.47,140.42,46.18873382]
[1720668450336,0.04235172,140.47,140.44,23.98]
[1720668450653,0.04235172,140.47,140.45,46.1884799]
[1720668451045,0.04235172,140.47,140.46,0.17]
[1720668451247,0.04235172,140.47,140.46,1.52839528]
[1720668452036,0.04235172,140.47,140.46,1.35839528]
[1720668452545,0.04235172,140.47,140.46,1.18839528]
[1720668454852,0.04235172,140.47,140.45,23.98]
[1720668455056,0.04235172,140.47,140.46,1.18797258]
[1720668456041,0.04235172,140.47,140.46,46.18797258]
[1720668459651,0.04235172,140.47,140.46,1.18797258]
[1720668459955,6.19855172,140.47,140.35,27.121601]
[1720668460152,6.19855172,140.47,140.41,23.98]
[1720668460937,0.04235172,140.47,140.41,23.98]
[1720668461471,0.04235172,140.47,140.42,45.34]
[1720668462436,0.04235172,140.47,140.44,23.98]
[1720668462643,0.04235172,140.47,140.45,45.17]
[1720668463147,0.04235172,140.47,140.44,23.98]
[1720668463548,0.04235172,140.47,140.45,1.1895947]
[1720668465270,0.04235172,140.47,140.41,23.98]
[1720668466169,0.04235172,140.47,140.36,21.46]
[1720668466461,0.04235172,140.47,140.41,23.98]
[1720668466764,0.04235172,140.47,140.42,45.34]
[1720668467500,0.04235172,140.47,140.44,23.98]
[1720668467641,0.04235172,140.47,140.45,45.34]
[1720668467845,0.04235172,140.47,140.45,65.34]
[1720668468246,0.04235172,140.47,140.46,0.17]
[1720668469457,0.04235172,140.47,140.45,65.34]
[1720668470866,0.04235172,140.47,140.45,20.0]
[1720668471372,0.04235172,140.47,140.44,23.98]
[1720668471582,0.04235172,140.47,140.42,23.98]
[1720668471775,0.04235172,140.47,140.43,20.0]
[1720668472159,0.04235172,140.47,140.42,23.98]
[1720668474577,6.58185172,140.47,140.42,23.98]
[1720668475782,6.58185172,140.47,140.39,23.98]
[1720668475970,6.58185172,140.47,140.4,45.34]
[1720668479084,0.04235172,140.47,140.42,23.98]
[1720668479281,0.04235172,140.47,140.43,0.86207636]
[1720668479578,0.04235172,140.47,140.42,23.98]
[1720668480461,0.04235172,140.47,140.43,45.0]
[1720668481682,0.04235172,140.47,140.44,0.34]
[1720668483564,0.04235172,140.47,140.45,23.98]
[1720668483762,0.04235172,140.47,140.46,45.34]
[1720668484979,0.04235172,140.47,140.46,66.97]
[1720668485189,0.04235172,140.47,140.46,86.97]
[1720668485366,0.04235172,140.47,140.46,65.34]
[1720668486281,0.04235172,140.47,140.46,65.51]
[1720668487463,0.04235172,140.47,140.46,86.97]
[1720668488165,0.8198012,140.54,140.46,86.97]
[1720668488365,0.8198012,140.54,140.5,23.98]
[1720668488678,0.8198012,140.54,140.51,45.34]
[1720668491469,0.8198012,140.54,140.46,20.0]
[1720668491790,0.8198012,140.54,140.48,23.98]
[1720668492291,0.8198012,140.54,140.49,1.42302286]
[1720668492478,0.8198012,140.54,140.45,23.98]
[1720668492684,6.4338,140.53,140.45,23.98]
[1720668493203,6.4338,140.53,140.46,20.0]
[1720668493585,6.4338,140.53,140.45,23.98]
[1720668493964,0.17,140.52,140.45,23.98]
[1720668494904,0.17,140.52,140.42,23.98]
[1720668497008,0.17,140.52,140.43,0.72668589]
[1720668497214,0.17,140.52,140.43,45.72668589]
[1720668497509,0.17,140.52,140.44,1.19514606]
[1720668497701,0.17,140.52,140.45,0.17]
[1720668498704,6.4338,140.53,140.46,1.02500009]
[1720668498910,6.4338,140.53,140.47,24.32]
[1720668499122,6.4338,140.53,140.48,46.10330785]
[1720668499311,0.8198012,140.54,140.48,46.10330785]
[1720668499612,0.8198012,140.54,140.49,0.17]
[1720668499816,0.8198012,140.54,140.48,46.10330785]
[1720668500317,0.8198012,140.54,140.48,1.10330785]
[1720668501017,0.17,140.53,140.48,1.10330785]
[1720668501512,0.17,140.53,140.43,21.10330785]
[1720668501726,0.17,140.53,140.43,1.10330785]
[1720668502008,0.17,140.53,140.42,23.98]
[1720668502991,11.0049,140.52,140.42,23.98]
[1720668503710,0.17,140.51,140.43,45.0]
[1720668504410,6.3837,140.5,140.43,45.0]
[1720668505211,0.17,140.49,140.42,23.98]
[1720668505418,0.17,140.49,140.39,39.1847]
[1720668505617,0.17,140.49,140.39,23.98]
[1720668506193,0.17,140.47,140.36,15.4343]
[1720668507603,0.17,140.47,140.37,21.42414516]
[1720668507806,0.17,140.47,140.38,45.34]
[1720668508004,0.17,140.47,140.39,1.42415053]
[1720668508198,0.17,140.47,140.4,1.42415068]
[1720668508606,0.17,140.47,140.38,69.32]
[1720668509312,0.17,140.47,140.38,45.34]
[1720668511313,11.0049,140.48,140.38,45.34]
[1720668512506,0.51,140.47,140.37,43.98]
[1720668512697,0.51,140.47,140.37,20.0]
[1720668513019,0.17,140.47,140.37,20.0]
[1720668513198,0.17,140.47,140.39,23.98]
[1720668513716,0.17,140.47,140.4,45.17]
[1720668514021,11.0049,140.48,140.41,0.17]
[1720668514722,6.3837,140.5,140.41,0.17]
[1720668515217,0.17,140.49,140.41,0.17]
[1720668517206,6.3837,140.5,140.41,21.8]
[1720668517408,6.3837,140.5,140.42,69.15]
[1720668517619,11.0049,140.53,140.43,0.34]
[1720668517923,17.2307,140.53,140.45,23.98]
[1720668518121,17.2307,140.53,140.46,45.34]
[1720668519221,17.2307,140.53,140.45,23.98]
[1720668519222,0.17,140.52,140.45,23.98]
[1720668519423,0.17,140.52,140.44,0.17]
[1720668519629,0.17,140.52,140.43,20.0]
[1720668520020,0.51,140.52,140.42,23.98]
[1720668520320,0.34,140.52,140.43,0.4308694]
[1720668521209,0.34,140.52,140.42,23.98]
[1720668521724,0.17,140.52,140.42,23.98]
[1720668521905,0.17,140.52,140.43,45.34]
[1720668522306,17.2307,140.53,140.47,23.98]
[1720668522307,6.2258,140.53,140.47,23.98]
[1720668522517,6.2258,140.53,140.48,65.34]
[1720668523432,6.2258,140.53,140.48,20.0]
[1720668523607,6.2258,140.53,140.47,23.98]
[1720668524129,6.2258,140.53,140.48,45.0]
[1720668524721,6.2258,140.53,140.47,23.98]
[1720668524722,0.17,140.52,140.47,23.98]
[1720668524928,6.2258,140.53,140.44,23.98]
[1720668525311,6.2258,140.53,140.44,45.44]
[1720668525627,6.2258,140.53,140.47,23.98]
[1720668526129,6.2258,140.53,140.48,45.34]
[1720668531911,0.8198012,140.54,140.48,45.34]
[1720668533329,0.8198012,140.54,140.5,23.98]
[1720668533638,0.8198012,140.54,140.51,45.34]
[1720668533831,0.8198012,140.54,140.51,65.34]
[1720668534342,0.8198012,140.54,140.53,23.98]
[1720668534510,0.8198012,140.54,140.53,24.32]
[1720668534716,0.8198012,140.54,140.53,69.32]
[1720668535640,0.8198012,140.54,140.53,0.34]
[1720668535811,0.8198012,140.54,140.5,20.0]
[1720668536011,0.8198012,140.54,140.51,0.17]
[1720668536835,0.8198012,140.54,140.5,20.0]
[1720668538432,0.8198012,140.54,140.51,45.34]
[1720668539824,0.8198012,140.54,140.51,0.34]
[1720668540419,0.8198012,140.54,140.5,20.0]
[1720668543513,0.8198012,140.54,140.51,0.34]
[1720668543839,0.8198012,140.54,140.51,45.34]
[1720668544743,0.8198012,140.54,140.51,0.34]
[1720668544952,0.8198012,140.54,140.51,0.17]
[1720668545122,0.8198012,140.54,140.51,45.34]
[1720668547927,0.8198012,140.54,140.5,20.0]
[1720668549451,0.8198012,140.54,140.51,0.17]
[1720668549739,6.5518,140.53,140.46,11.0049]
[1720668549948,6.5518,140.53,140.47,23.98]
[1720668550314,11.8247012,140.54,140.47,23.98]
[1720668551651,11.8247012,140.54,140.48,45.34]
[1720668552222,11.8247012,140.54,140.5,23.98]
[1720668552223,0.8198012,140.54,140.5,23.98]
[1720668552531,0.8198012,140.54,140.51,0.34]
[1720668555646,0.8198012,140.54,140.51,45.34]
[1720668555951,0.8198012,140.54,140.53,23.98]
[1720668556128,0.8198012,140.54,140.53,69.32]
[1720668558450,0.8198012,140.54,140.53,24.15]
[1720668558659,0.8198012,140.54,140.53,23.98]
[1720668560447,0.8198012,140.54,140.51,23.98]
[1720668563846,0.8198012,140.54,140.52,0.34]
[1720668564430,0.8198012,140.54,140.52,0.17]
[1720668565448,0.8198012,140.54,140.52,1.58553053]
[1720668568638,0.8198012,140.54,140.52,0.17]
[1720668569842,0.8198012,140.54,140.51,23.98]
[1720668570440,0.8198012,140.54,140.52,0.17]
[1720668571347,0.8198012,140.54,140.52,1.58757336]
[1720668572358,0.8198012,140.54,140.52,0.17]
[1720668572868,0.8198012,140.54,140.51,23.98]
[1720668574676,0.8198012,140.54,140.53,11.94]
[1720668576987,11.8247012,140.54,140.45,28.4438]
[1720668577197,0.17,140.53,140.45,16.5038]
[1720668577475,0.17,140.53,140.5,11.94]
[1720668578270,0.17,140.53,140.51,11.94]
[1720668578688,0.17,140.53,140.46,23.89]
[1720668580462,0.17,140.51,140.42,23.89]
[1720668580664,0.17,140.51,140.43,20.0]
[1720668581561,0.17,140.51,140.44,0.34]
[1720668582763,0.17,140.51,140.42,23.89]
[1720668582961,45.17,140.51,140.43,0.17]
[1720668583555,45.17,140.51,140.42,23.89]
[1720668583556,0.17,140.49,140.42,23.89]
[1720668585579,45.17,140.49,140.42,23.89]
[1720668585761,45.17,140.49,140.39,23.89]
[1720668586063,45.17,140.49,140.4,20.0]
[1720668586471,0.17,140.47,140.4,20.0]
[1720668586671,45.17,140.47,140.4,20.0]
[1720668587484,45.17,140.47,140.39,23.89]
[1720668587795,45.17,140.47,140.35,23.89]
[1720668588885,45.17,140.47,140.34,15.4694]
[1720668588886,11.0049,140.46,140.34,15.4694]
[1720668589099,45.34,140.45,140.34,15.4694]
[1720668589390,45.34,140.45,140.35,23.89]
[1720668589889,0.17,140.45,140.34,36.9294]
[1720668590089,0.17,140.45,140.37,23.89]
[1720668590590,0.17,140.45,140.38,0.34]
[1720668590800,0.17,140.45,140.37,23.89]
[1720668591093,45.17,140.45,140.37,23.89]
[1720668591275,11.0049,140.46,140.37,23.89]
[1720668591477,11.0049,140.46,140.38,0.34]
[1720668591695,11.0049,140.46,140.38,20.34]
[1720668592802,11.0049,140.46,140.39,45.0]
[1720668592977,11.0049,140.46,140.4,0.17]
[1720668593295,11.0049,140.46,140.38,44.23]
[1720668593802,6.0613,140.48,140.41,23.89]
[1720668593963,6.0613,140.48,140.42,0.17]
[1720668594167,6.0613,140.48,140.41,23.89]
[1720668597713,11.1749,140.47,140.34,15.4694]
[1720668597996,56.1749,140.47,140.37,23.89]
[1720668598196,11.1749,140.47,140.37,23.89]
[1720668599296,11.1749,140.47,140.38,20.0]
[1720668599598,0.17,140.45,140.38,20.0]
[1720668600370,0.51,140.45,140.35,23.89]
[1720668600574,11.0049,140.47,140.35,23.89]
[1720668600806,11.0049,140.47,140.35,45.35]
[1720668600988,11.0049,140.47,140.35,23.89]
[1720668601389,11.0049,140.47,140.34,15.4694]
[1720668601608,11.0049,140.47,140.36,23.89]
[1720668602108,45.0,140.46,140.36,23.89]
[1720668602285,11.0049,140.47,140.36,23.89]
[1720668602495,11.0049,140.47,140.39,23.89]
[1720668602814,11.0049,140.47,140.4,0.76609286]
[1720668603913,11.0049,140.47,140.41,0.17]
[1720668604097,11.0049,140.47,140.41,1.105984]
[1720668604301,6.6646,140.51,140.43,0.17]
[1720668604502,6.6646,140.51,140.45,23.89]
[1720668604707,0.8198012,140.54,140.46,41.8]
[1720668604922,0.8198012,140.54,140.48,23.89]
[1720668605200,0.8198012,140.54,140.49,0.34]
[1720668605414,0.8198012,140.54,140.46,20.0]
[1720668605706,0.8198012,140.54,140.45,20.34]
[1720668605908,6.183,140.53,140.44,23.89]
[1720668606123,11.0049,140.52,140.41,23.89]
[1720668606486,0.51,140.51,140.41,23.89]
[1720668606713,0.17,140.51,140.41,23.89]
[1720668607089,11.0049,140.52,140.44,23.89]
[1720668607590,0.17,140.51,140.44,23.89]
[1720668608608,45.17,140.51,140.44,23.89]
[1720668610012,45.17,140.51,140.39,16.567]
[1720668610187,45.17,140.51,140.4,98.89]
[1720668611489,0.17,140.49,140.4,53.89]
[1720668612194,0.17,140.5,140.4,53.89]
[1720668612391,0.17,140.51,140.41,45.17]
[1720668612604,0.17,140.51,140.43,23.89]
[1720668612822,0.17,140.51,140.44,30.0]
[1720668614088,45.17,140.51,140.44,30.0]
[1720668614416,0.17,140.51,140.44,30.0]
[1720668615207,6.183,140.53,140.46,23.89]
[1720668615414,6.2325,140.58,140.49,23.89]
[1720668615621,6.2325,140.58,140.5,0.34]
[1720668615793,6.2325,140.58,140.5,0.17]
[1720668616119,6.2325,140.58,140.5,0.34]
[1720668616498,6.2325,140.58,140.5,30.34]
[1720668617093,6.2325,140.58,140.5,0.34]
[1720668617513,2.80357483,140.62,140.5,0.34]
[1720668617514,6.2325,140.62,140.5,21.8]
[1720668617716,6.2325,140.62,140.5,66.8]
[1720668617894,6.2325,140.62,140.52,23.89]
[1720668618101,6.2325,140.62,140.53,0.34]
[1720668619097,6.2325,140.62,140.53,45.34]
[1720668619804,100.0,140.71,140.53,103.2889]
[1720668619805,6.2325,140.65,140.53,103.2889]
[1720668620205,6.2325,140.65,140.54,0.17]
[1720668620400,6.2325,140.65,140.56,23.89]
[1720668620609,6.2325,140.65,140.57,0.17]
[1720668620830,6.2325,140.65,140.56,23.89]
[1720668621018,6.2325,140.65,140.57,45.34]
[1720668621226,6.2325,140.65,140.57,0.34]
[1720668621897,6.2325,140.65,140.57,0.17]
[1720668622104,6.2325,140.65,140.56,23.89]
[1720668622316,0.17,140.64,140.53,85.2089]
[1720668622503,0.17,140.64,140.54,0.34]
[1720668622716,45.17,140.64,140.54,0.34]
[1720668623027,45.17,140.64,140.54,30.34]
[1720668623316,45.17,140.64,140.56,23.89]
[1720668623317,0.17,140.64,140.56,23.89]
[1720668623516,0.17,140.64,140.57,0.34]
[1720668624901,0.17,140.64,140.56,23.89]
[1720668625125,0.17,140.64,140.54,53.89]
[1720668625126,45.17,140.64,140.54,53.89]
[1720668625300,45.17,140.64,140.56,30.0]
[1720668625604,11.0049,140.67,140.56,30.0]
[1720668625808,11.0049,140.67,140.57,23.89]
[1720668626313,11.0049,140.67,140.58,0.34]
[1720668627118,10.6749,140.67,140.58,0.34]
[1720668627321,10.6749,140.67,140.58,45.34]
[1720668627723,10.6749,140.67,140.59,1.06537046]
[1720668628112,10.6749,140.67,140.6,0.17]